Workbook

Sheet 1. Info
AC1: =IF('3. Data_Input_Sheet'!M12=0, "", '3. Data_Input_Sheet'!M12) -> Close of Discovery
P11: Version | Q11: 4
F16: Utility Name | G16: Oshawa PUC Networks Inc.
F18: Service Territory | G18: Oshawa
F20: Assigned EB Number | G20: EB-2014-0101 | AA20: Company Name
Z21: 1 | AA21: Algoma Power Inc.
F22: Name and Title | G22: David Savage, Corporate Controller | Z22: 2 | AA22: Atikokan Hydro Inc.
Z23: 3 | AA23: Attawapiskat Power Corporation
F24: Phone Number | G24: 905-743 5219 | Z24: 4 | AA24: Bluewater Power Distribution Corp.
Z25: 5 | AA25: Brant County Power
F26: Email Address | G26: dsavage@opuc.on.ca | Z26: 6 | AA26: Brantford Power Inc.
Z27: 7 | AA27: Burlington Hydro Inc.
Z28: 8 | AA28: Cambridge and North Dumfries Hydro
Z29: 9 | AA29: Canadian Niagara Power Inc. – Eastern Ontario Power/Fort Erie/Port Colborne
Z30: 10 | AA30: Centre Wellington Hydro Ltd.
Z31: 11 | AA31: Chapleau Public Utilities Corporation
Z32: 12 | AA32: COLLUS Power Corp.
Z33: 13 | AA33: Cooperative Hydro Embrun Inc.
Z34: 14 | AA34: E.L.K. Energy Inc.
Z35: 15 | AA35: Enersource Hydro Mississauga Inc.
Z36: 16 | AA36: Entegrus Powerlines Inc.
Z37: 17 | AA37: ENWIN Utilities Ltd.
Z38: 18 | AA38: Erie Thames Powerlines Corp.
Z39: 19 | AA39: Espanola Regional Hydro Distribution Corporation
Z40: 20 | AA40: Essex Powerlines Corporation
Z41: 21 | AA41: Festival Hydro Inc.
Z42: 22 | AA42: Fort Albany Power Corporation
Z43: 23 | AA43: Fort Frances Power Corporation
Z44: 24 | AA44: Greater Sudbury Hydro Inc.
Z45: 25 | AA45: Grimsby Power Inc.
Z46: 26 | AA46: Guelph Hydro Electric Systems Inc.
Z47: 27 | AA47: Haldimand County Hydro Inc.
Z48: 28 | AA48: Halton Hills Hydro Inc.
Z49: 29 | AA49: Hearst Power Distribution Co. Ltd.
Z50: 30 | AA50: Horizon Utilities Corporation
Z51: 31 | AA51: Hydro 2000 Inc.
Z52: 32 | AA52: Hydro Hawkesbury Inc.
Z53: 33 | AA53: Hydro One Brampton Networks Inc.
Z54: 34 | AA54: Hydro One Networks Inc.
Z55: 35 | AA55: Hydro One Remote Communities Inc.
Z56: 36 | AA56: Hydro Ottawa Limited
Z57: 37 | AA57: Innisfil Hydro Dist. Systems Limited
Z58: 38 | AA58: Kashechewan Power Corporation
Z59: 39 | AA59: Kenora Hydro Electric Corporation Ltd.
Z60: 40 | AA60: Kingston Hydro Corporation
Z61: 41 | AA61: Kitchener-Wilmot Hydro Inc.
Z62: 42 | AA62: Lakefront Utilities Inc.
Z63: 43 | AA63: Lakeland Power Distribution Ltd.
Z64: 44 | AA64: London Hydro Inc.
Z65: 45 | AA65: Midland Power Utility Corporation
Z66: 46 | AA66: Milton Hydro Distribution Inc.
Z67: 47 | AA67: Newmarket – Tay Power Distribution Ltd.
Z68: 48 | AA68: Niagara Peninsula Energy Inc.
Z69: 49 | AA69: Niagara-on-the-Lake Hydro Inc.
Z70: 50 | AA70: Norfolk Power Distribution Ltd.
Z71: 51 | AA71: North Bay Hydro Distribution Limited
Z72: 52 | AA72: Northern Ontario Wires Inc.
Z73: 53 | AA73: Oakville Hydro Distribution Inc.
Z74: 54 | AA74: Orangeville Hydro Limited
Z75: 55 | AA75: Orillia Power Distribution Corp.
Z76: 56 | AA76: Oshawa PUC Networks Inc.
Z77: 57 | AA77: Ottawa River Power Corporation
Z78: 58 | AA78: Parry Sound Power Corporation
Z79: 59 | AA79: Peterborough Distribution Inc.
Z80: 60 | AA80: PowerStream Inc. - Barrie
Z81: 61 | AA81: PowerStream Inc. - South
Z82: 62 | AA82: PUC Distribution Inc.
Z83: 63 | AA83: Renfrew Hydro Inc.
Z84: 64 | AA84: Rideau St. Lawrence Distribution Inc.
Z85: 65 | AA85: St. Thomas Energy Inc.
Z86: 66 | AA86: Sioux Lookout Hydro Inc.
Z87: 67 | AA87: Thunder Bay Hydro Electricity Distribution Inc.
Z88: 68 | AA88: Tillsonburg Hydro Inc.
Z89: 69 | AA89: Toronto Hydro-Electric System Limited
Z90: 70 | AA90: Veridian Connections Inc.
Z91: 71 | AA91: Wasaga Distribution Inc.
Z92: 72 | AA92: Waterloo North Hydro Inc.
Z93: 73 | AA93: Welland Hydro-Electric System Corp.
Z94: 74 | AA94: Wellington North Power Inc.
Z95: 75 | AA95: West Coast Huron Energy Inc.
Z96: 76 | AA96: Westario Power Inc.
Z97: 77 | AA97: Whitby Hydro Electric Corporation
Z98: 78 | AA98: Woodstock Hydro Services Inc.

Sheet 2. Table of Contents
D11: 1. Info | I11: 6. Taxes_PILs
D13: 2. Table of Contents | I13: 7. Cost_of_Capital
D15: 3. Data_Input_Sheet | I15: 8. Rev_Def_Suff
D17: 4. Rate_Base | I17: 9. Rev_Reqt
D19: 5. Utility Income
A24: Notes:
A25: (1) | B25: Pale green cells represent inputs
A26: (2) | B26: Pale green boxes at the bottom of each page are for additional notes
A27: (3) | B27: Pale yellow cells represent drop-down lists
A28: (4) | B28: Please note that this model uses MACROS. Before starting, please ensure that macros have been enabled.
A29: (5) | B29: Completed versions of the Revenue Requirement Work Form are required to be filed in working Microsoft Excel format.

Sheet 3. Data_Input_Sheet
U1: =CONCATENATE('2. Table of Contents'!$F$6," ",'2. Table of Contents'!$G$6) -> 
B9: Data Input (1)
E12: Initial Application | G12: (2) | I12: =IF(ISBLANK(M12),"","Adjustments") -> Adjustments | M12: Close of Discovery | O12: (6) | Q12: =IF(ISBLANK(M12),"","Adjustments") -> Adjustments | U12: Per Board Decision
B15: 1 | C15: Rate Base
C16: Gross Fixed Assets (average) | E16: 173131.8629 | I16: =Data!C5-E16 -> -163.3055361 | M16: =IF(ISBLANK(E16),0,E16+I16) -> 172968.5574 | U16: =IF(ISBLANK(E16),"",E16+I16+Q16) -> 172968.5574
C17: Accumulated Depreciation (average) | E17: -85402.75539 | G17: (5) | I17: =Data!C6-E17 -> -202.5904278 | M17: =IF(ISBLANK(E17),0,E17+I17) -> -85605.34582 | U17: =IF(ISBLANK(E17),"",E17+I17+Q17) -> -85605.34582
C18: Allowance for Working Capital:
C19: Controllable Expenses | E19: 12145.70156 | I19: =Data!C8-E19 -> 59.047 | M19: =IF(ISBLANK(E19),0,E19+I19) -> 12204.74856 | U19: =IF(ISBLANK(E19),"",E19+I19+Q19) -> 12204.74856
C20: Cost of Power | E20: 120634.8172 | I20: =Data!C9-E20 -> 1118.18699 | M20: =IF(ISBLANK(E20),0,E20+I20) -> 121753.0042 | U20: =IF(ISBLANK(E20),"",E20+I20+Q20) -> 121753.0042
C21: Working Capital Rate (%) | E21: 0.13 | G21: (9) | M21: =IF(ISBLANK(E21),0,E21) -> 0.13 | O21: (9) | U21: =IF(ISBLANK(M21),IF(ISBLANK(E21),0,E21),M21) -> 0.13 | W21: (9)
B23: 2 | C23: Utility Income
C24: Operating Revenues:
C25: Distribution Revenue at Current Rates | E25: 18703.17355 | I25: =IF(ISBLANK(M25),"",IF(ISBLANK(E25),"",M25-E25)) -> 52.89379282 | M25: =Data!C14 -> 18756.06735 | Q25: =IF(ISBLANK(U25),"",IF(ISBLANK(M25),"",U25-M25)) -> 
C26: Distribution Revenue at Proposed Rates | E26: 21565.26358 | I26: =IF(ISBLANK(M26),"",IF(ISBLANK(E26),"",M26-E26)) -> 81.28844573 | M26: =Data!C15 -> 21646.55202 | Q26: =IF(ISBLANK(U26),"",IF(ISBLANK(M26),"",U26-M26)) -> 
C27: Other Revenue:
C28: Specific Service Charges | E28: 758.1690985 | I28: =IF(ISBLANK(M28),"",IF(ISBLANK(E28),"",M28-E28)) -> -0.5783250196 | M28: =Data!C17 -> 757.5907735 | Q28: =IF(ISBLANK(U28),"",IF(ISBLANK(M28),"",U28-M28)) -> 
C29: Late Payment Charges | E29: 290.2563718 | I29: =IF(ISBLANK(M29),"",IF(ISBLANK(E29),"",M29-E29)) -> -0.2372816781 | M29: =Data!C18 -> 290.0190901 | Q29: =IF(ISBLANK(U29),"",IF(ISBLANK(M29),"",U29-M29)) -> 
C30: Other Distribution Revenue | E30: 159.8934987 | I30: =IF(ISBLANK(M30),"",IF(ISBLANK(E30),"",M30-E30)) -> -1.087280066 | M30: =Data!C19 -> 158.8062186 | Q30: =IF(ISBLANK(U30),"",IF(ISBLANK(M30),"",U30-M30)) -> 
C31: Other Income and Deductions | E31: 128 | I31: =IF(ISBLANK(M31),"",IF(ISBLANK(E31),"",M31-E31)) -> 0 | M31: =Data!C20 -> 128 | Q31: =IF(ISBLANK(U31),"",IF(ISBLANK(M31),"",U31-M31)) -> 
D33: Total Revenue Offsets | E33: 1336.318969 | G33: (7) | I33: =IF(ISBLANK(M33),"",IF(ISBLANK(E33),"",M33-E33)) -> -1.902886764 | M33: =Data!C22 -> 1334.416082 | Q33: =IF(ISBLANK(U33),"",IF(ISBLANK(M33),"",U33-M33)) -> 
C35: Operating Expenses:
C36: OM+A Expenses | E36: 11959.79719 | I36: =Data!C25-E36 -> 59.047 | M36: =IF(ISBLANK(E36),"",E36+I36) -> 12018.84419 | U36: =IF(ISBLANK(E36),"",E36+I36+Q36) -> 12018.84419
C37: Depreciation/Amortization | E37: 3896.462548 | I37: =Data!C26-E37 -> -35.85146427 | M37: =IF(ISBLANK(E37),"",E37+I37) -> 3860.611083 | U37: =IF(ISBLANK(E37),"",E37+I37+Q37) -> 3860.611083
C38: Property taxes | E38: 158.4445968 | I38: =Data!C27-E38 -> 0 | M38: =IF(ISBLANK(E38),"",E38+I38) -> 158.4445968 | U38: =IF(ISBLANK(E38),"",E38+I38+Q38) -> 158.4445968
C39: Capital taxes | E39: =IF(ISBLANK(E48),"",E48) ->  | M39: =IF(ISBLANK(M48),"",M48) ->  | U39: =IF(ISBLANK(U48),"",U48) -> 
C40: Other expenses | E40: 27.45977693 | I40: =Data!C29-E40 -> 0 | M40: =IF(ISBLANK(E40),"",E40+I40) -> 27.45977693 | U40: =IF(ISBLANK(E40),"",E40+I40+Q40) -> 27.45977693
B42: 3 | C42: Taxes/PILs
C43: Taxable Income:
D44: Adjustments required to arrive at taxable income | E44: -3176.429719 | G44: (3) | M44: =Data!C33 -> -2868.947714
C45: Utility Income Taxes and Rates:
C46: Income taxes (not grossed up) | E46: 148.2432123 | M46: =Data!C35 -> 200.6276136
C47: Income taxes (grossed up) | E47: =IF(ISBLANK(E46),"",E46/(1-SUM(E49:E50))) -> 189.3280623 | M47: =IF(ISBLANK(M46),"",M46/(1-SUM(M49:M50))) -> 260.8871212 | U47: =IF(ISBLANK(U46),"",U46/(1-SUM(U49:U50))) -> 
C48: Capital Taxes
C49: Federal tax (%) | E49: 0.15 | M49: =Data!C38 -> 0.15
C50: Provincial tax (%) | E50: 0.06700348881 | M50: =Data!C39 -> 0.0809792349
C51: Income Tax Credits | E51: -10 | M51: =Data!C40 -> -37
B53: 4 | C53: Capitalization/Cost of Capital
C54: Capital Structure:
C55: Long-term debt Capitalization Ratio (%) | E55: 0.56 | M55: =Data!C44 -> 0.56
C56: Short-term debt Capitalization Ratio (%) | E56: 0.04 | G56: (8) | M56: =Data!C45 -> 0.04 | O56: (8) | W56: (8)
C57: Common Equity Capitalization Ratio (%) | E57: 0.4 | M57: =Data!C46 -> 0.4
C58: Prefered Shares Capitalization Ratio (%) | E58: 0 | M58: =Data!C47 -> 0
E59: =SUM(E55:E58) -> 1 | M59: =SUM(M55:M58) -> 1 | U59: =SUM(U55:U58) -> 0
E60: =IF(ISBLANK(E57),"",IF(SUM(E55:E58)=100%,"","Capital Structure must total 100%")) ->  | M60: =IF(ISBLANK(M57),"",IF(SUM(M55:M58)=100%,"","Capital Structure must total 100%")) ->  | U60: =IF(ISBLANK(U57),"",IF(SUM(U55:U58)=100%,"","Capital Structure must total 100%")) -> 
C61: Cost of Capital
C62: Long-term debt Cost Rate (%) | E62: 0.04547566585 | M62: =Data!C51 -> 0.04544420054
C63: Short-term debt Cost Rate (%) | E63: 0.0216 | M63: =Data!C52 -> 0.0216
C64: Common Equity Cost Rate (%) | E64: 0.093 | M64: =Data!C53 -> 0.093
C65: Prefered Shares Cost Rate (%) | E65: 0 | M65: =Data!C54 -> 0
A68: Notes:
B69: General | C69: Data inputs are required on Sheets 3. Data from Sheet 3 will automatically complete calculations on sheets 4 through 9 (Rate Base through Revenue Requirement). Sheets 4 through 9 do not require any inputs except for notes that the Applicant may wish to enter to support the results. Pale green cells are available on sheets 4 through 9 to enter both footnotes beside key cells and the related text for the notes at the bottom of each sheet.
B70: (1) | C70: All inputs are in dollars ($) except where inputs are individually identified as percentages (%)
B71: (2) | C71: Data in column E is for Application as originally filed. For updated revenue requirement as a result of interrogatory responses, technical or settlement conferences, etc., use colimn M and Adjustments in column I
B72: (3) | C72: Net of addbacks and deductions to arrive at taxable income.
B73: (4) | C73: Average of Gross Fixed Assets at beginning and end of the Test Year
B74: (5) | C74: Average of Accumulated Depreciation at the beginning and end of the Test Year. Enter as a negative amount.
B75: (6) | C75: Select option from drop-down list by clicking on cell M10. This column allows for the application update reflecting the end of discovery or Argument-in-Chief. Also, the outcome of any Settlement Process can be reflected.
B76: (7) | C76: Input total revenue offsets for deriving the base revenue requirement from the service revenue requirement
B77: (8) | C77: 4.0% unless an Applicant has proposed or been approved for another amount.
B78: (9) | C78: Starting with 2013, default Working Capital Allowance factor is 13% (of Cost of Power plus controllable expenses). Alternatively, WCA factor based on lead-lag study or approved WCA factor for another distributor, with supporting rationale.

Sheet 4. Rate_Base
B6: Rate Base and Working Capital
D10: Rate Base
B11: Line No. | D11: Particulars | G11: Initial Application | K11: =IF(ISBLANK('3. Data_Input_Sheet'!M12),"",'3. Data_Input_Sheet'!I12) -> Adjustments | O11: =IF(ISBLANK('3. Data_Input_Sheet'!M12)," ",'3. Data_Input_Sheet'!M12) -> Close of Discovery | S11: =IF(ISBLANK('3. Data_Input_Sheet'!Q12),"",'3. Data_Input_Sheet'!Q12) -> Adjustments | W11: ='3. Data_Input_Sheet'!U12 -> Per Board Decision
B13: 1 | D13: Gross Fixed Assets (average) | E13: (3) | G13: ='3. Data_Input_Sheet'!E16 -> 173131.8629 | K13: ='3. Data_Input_Sheet'!I16 -> -163.3055361 | O13: =G13+K13 -> 172968.5574 | S13: ='3. Data_Input_Sheet'!Q16 -> 0 | W13: =G13+K13+S13 -> 172968.5574
B14: 2 | D14: Accumulated Depreciation (average) | E14: (3) | G14: ='3. Data_Input_Sheet'!E17 -> -85402.75539 | K14: ='3. Data_Input_Sheet'!I17 -> -202.5904278 | O14: =G14+K14 -> -85605.34582 | S14: ='3. Data_Input_Sheet'!Q17 -> 0 | W14: =G14+K14+S14 -> -85605.34582
B15: 3 | D15: Net Fixed Assets (average) | E15: (3) | G15: =SUM(G13:G14) -> 87729.10751 | K15: =SUM(K13:K14) -> -365.8959639 | O15: =SUM(O13:O14) -> 87363.21155 | S15: =SUM(S13:S14) -> 0 | W15: =SUM(W13:W14) -> 87363.21155
B17: 4 | D17: Allowance for Working Capital | E17: (1) | G17: =G30 -> 17261.46744 | K17: =K30 -> 153.0404187 | O17: =O30 -> 17414.50786 | S17: =S30 -> 0 | W17: =W30 -> 17414.50786
D18: Total Rate Base | G18: =G17+G15 -> 104990.5749 | K18: =K17+K15 -> -212.8555452 | O18: =O17+O15 -> 104777.7194 | S18: =S17+S15 -> 0 | W18: =W15+W17 -> 104777.7194
B19: 5
C20: (1) | D20: Allowance for Working Capital - Derivation
B24: 6 | D24: Controllable Expenses | G24: ='3. Data_Input_Sheet'!E19 -> 12145.70156 | K24: ='3. Data_Input_Sheet'!I19 -> 59.047 | O24: =G24+K24 -> 12204.74856 | S24: ='3. Data_Input_Sheet'!Q19 -> 0 | W24: =G24+K24+S24 -> 12204.74856
B25: 7 | D25: Cost of Power | G25: ='3. Data_Input_Sheet'!E20 -> 120634.8172 | K25: ='3. Data_Input_Sheet'!I20 -> 1118.18699 | O25: =G25+K25 -> 121753.0042 | S25: ='3. Data_Input_Sheet'!Q20 -> 0 | W25: =G25+K25+S25 -> 121753.0042
B26: 8 | D26: Working Capital Base | G26: =SUM(G24:G25) -> 132780.5188 | K26: =K24+K25 -> 1177.23399 | O26: =SUM(O24:O25) -> 133957.7528 | S26: =S24+S25 -> 0 | W26: =SUM(W24:W25) -> 133957.7528
B28: 9 | D28: Working Capital Rate % | E28: (2) | G28: ='3. Data_Input_Sheet'!E21 -> 0.13 | K28: =O28-G28 -> 0 | O28: ='3. Data_Input_Sheet'!M21 -> 0.13 | S28: =W28-O28 -> 0 | W28: ='3. Data_Input_Sheet'!U21 -> 0.13
B30: 10 | D30: Working Capital Allowance | G30: =G26*G28 -> 17261.46744 | K30: =O30-G30 -> 153.0404187 | O30: =O26*O28 -> 17414.50786 | S30: =W30-O30 -> 0 | W30: =W26*W28 -> 17414.50786
B33: Notes
B34: (2) | D34: Some Applicants may have a unique rate as a result of a lead-lag study. The default rate for 2014 cost of service applications is 13%.
B35: (3) | D35: Average of opening and closing balances for the year.

Sheet 5. Utility Income
B11: Utility Income
B13: Line No. | D13: Particulars | F13: Initial Application | J13: =IF(N13="","","Adjustments") -> Adjustments | N13: =IF(ISBLANK('3. Data_Input_Sheet'!M12),"",'3. Data_Input_Sheet'!M12) -> Close of Discovery | R13: =IF(N13="","","Adjustments") -> Adjustments | V13: ='3. Data_Input_Sheet'!U12 -> Per Board Decision
D15: Operating Revenues:
B16: 1 | D16: Distribution Revenue (at Proposed Rates) | F16: ='3. Data_Input_Sheet'!E26 -> 21565.26358 | J16: =N16-F16 -> 81.28844573 | N16: ='3. Data_Input_Sheet'!M26 -> 21646.55202 | R16: =V16-N16 -> 0 | V16: =IF(ISBLANK('3. Data_Input_Sheet'!U26),'5. Utility Income'!N16,'3. Data_Input_Sheet'!U26) -> 21646.55202
B17: 2 | D17: Other Revenue | E17: (1) | F17: =F48 -> 1336.318969 | J17: =N17-F17 -> -1.902886764 | N17: =N48 -> 1334.416082 | R17: =V17-N17 -> 0 | V17: =V48 -> 1334.416082
F18: =SUM(F16:F17) -> 22901.58255 | J18: =SUM(J16:J17) -> 79.38555896 | N18: =SUM(N16:N17) -> 22980.96811 | R18: =SUM(R16:R17) -> 0 | V18: =SUM(V16:V17) -> 22980.96811
B19: 3 | D19: Total Operating Revenues
D21: Operating Expenses:
B22: 4 | D22: OM+A Expenses | F22: ='3. Data_Input_Sheet'!E36 -> 11959.79719 | J22: ='3. Data_Input_Sheet'!I36 -> 59.047 | N22: ='3. Data_Input_Sheet'!M36 -> 12018.84419 | R22: ='3. Data_Input_Sheet'!Q36 -> 0 | V22: ='3. Data_Input_Sheet'!U36 -> 12018.84419
B23: 5 | D23: Depreciation/Amortization | F23: ='3. Data_Input_Sheet'!E37 -> 3896.462548 | J23: ='3. Data_Input_Sheet'!I37 -> -35.85146427 | N23: ='3. Data_Input_Sheet'!M37 -> 3860.611083 | R23: ='3. Data_Input_Sheet'!Q37 -> 0 | V23: ='3. Data_Input_Sheet'!U37 -> 3860.611083
B24: 6 | D24: Property taxes | F24: ='3. Data_Input_Sheet'!E38 -> 158.4445968 | J24: ='3. Data_Input_Sheet'!I38 -> 0 | N24: ='3. Data_Input_Sheet'!M38 -> 158.4445968 | R24: ='3. Data_Input_Sheet'!Q38 -> 0 | V24: ='3. Data_Input_Sheet'!U38 -> 158.4445968
B25: 7 | D25: Capital taxes | F25: ='6. Taxes_PILs'!G25 -> 0 | J25: =N25-F25 -> 0 | N25: ='6. Taxes_PILs'!K25 -> 0 | R25: =V25-N25 -> 0 | V25: ='6. Taxes_PILs'!O25 -> 0
B26: 8 | D26: Other expense | F26: ='3. Data_Input_Sheet'!E40 -> 27.45977693 | J26: ='3. Data_Input_Sheet'!I40 -> 0 | N26: ='3. Data_Input_Sheet'!M40 -> 27.45977693 | R26: ='3. Data_Input_Sheet'!Q40 -> 0 | V26: ='3. Data_Input_Sheet'!U40 -> 27.45977693
F27: =SUM(F22:F26) -> 16042.16411 | J27: =SUM(J22:J26) -> 23.19553573 | N27: =SUM(N22:N26) -> 16065.35965 | R27: =SUM(R22:R26) -> 0 | V27: =SUM(V22:V26) -> 16065.35965
B28: 9 | D28: Subtotal (lines 4 to 8)
B30: 10 | D30: Deemed Interest Expense | F30: ='7. Cost_of_Capital'!P19 -> 2764.440987 | J30: =N30-F30 -> -7.450809401 | N30: ='7. Cost_of_Capital'!P35 -> 2756.990177 | R30: =V30-N30 -> 1.846243527 | V30: ='7. Cost_of_Capital'!P51 -> 2758.836421
B32: 11 | D32: Total Expenses (lines 9 to 10) | F32: =F27+F30 -> 18806.6051 | J32: =J30+J27 -> 15.74472633 | N32: =N30+N27 -> 18822.34982 | R32: =R30+R27 -> 1.846243527 | V32: =V27+V30 -> 18824.19607
B34: 12 | D34: Utility income before income taxes | F34: =F18-(F32) -> 4094.97745 | J34: =J18-(J32) -> 63.64083263 | N34: =N18-(N32) -> 4158.618283 | R34: =R18-(R32) -> -1.846243527 | V34: =V18-(V32) -> 4156.77204
F35: ='6. Taxes_PILs'!G31 -> 189.3280623 | J35: =N35-F35 -> 71.55905891 | N35: ='6. Taxes_PILs'!K31 -> 260.8871212 | R35: =V35-N35 -> 0 | V35: =IF('6. Taxes_PILs'!O31=0,N35,'6. Taxes_PILs'!O31) -> 260.8871212
B36: 13 | D36: Income taxes (grossed-up)
F37: =F34-F35 -> 3905.649388 | J37: =J34-J35 -> -7.918226281 | N37: =N34-N35 -> 3897.731162 | R37: =R34-R35 -> -1.846243527 | V37: =V34-V35 -> 3895.884918
B38: 14 | D38: Utility net income
B42: Notes
B44: (1) | D44: Specific Service Charges | F44: ='3. Data_Input_Sheet'!E28 -> 758.1690985 | J44: ='3. Data_Input_Sheet'!I28 -> -0.5783250196 | N44: ='3. Data_Input_Sheet'!M28 -> 757.5907735 | R44: ='3. Data_Input_Sheet'!Q28 ->  | V44: =IF(ISBLANK('3. Data_Input_Sheet'!U28),N44,'3. Data_Input_Sheet'!U28) -> 757.5907735
D45: Late Payment Charges | F45: ='3. Data_Input_Sheet'!E29 -> 290.2563718 | J45: ='3. Data_Input_Sheet'!I29 -> -0.2372816781 | N45: ='3. Data_Input_Sheet'!M29 -> 290.0190901 | R45: ='3. Data_Input_Sheet'!Q29 ->  | V45: =IF(ISBLANK('3. Data_Input_Sheet'!U29),N45,'3. Data_Input_Sheet'!U29) -> 290.0190901
D46: Other Distribution Revenue | F46: ='3. Data_Input_Sheet'!E30 -> 159.8934987 | J46: ='3. Data_Input_Sheet'!I30 -> -1.087280066 | N46: ='3. Data_Input_Sheet'!M30 -> 158.8062186 | R46: ='3. Data_Input_Sheet'!Q30 ->  | V46: =IF(ISBLANK('3. Data_Input_Sheet'!U30),N46,'3. Data_Input_Sheet'!U30) -> 158.8062186
D47: Other Income and Deductions | F47: ='3. Data_Input_Sheet'!E31 -> 128 | J47: ='3. Data_Input_Sheet'!I31 -> 0 | N47: ='3. Data_Input_Sheet'!M31 -> 128 | R47: ='3. Data_Input_Sheet'!Q31 ->  | V47: =IF(ISBLANK('3. Data_Input_Sheet'!U31),N47,'3. Data_Input_Sheet'!U31) -> 128
F48: =SUM(F44:F47) -> 1336.318969 | J48: =SUM(J44:J47) -> -1.902886764 | N48: =SUM(N44:N47) -> 1334.416082 | R48: =SUM(R44:R47) -> 0 | V48: =SUM(V44:V47) -> 1334.416082
D49: Total Revenue Offsets

Sheet 6. Taxes_PILs
B9: Taxes/PILs
B12: Line No. | D12: Particulars | G12: Application | K12: =IF(ISBLANK('3. Data_Input_Sheet'!M12),"",'3. Data_Input_Sheet'!M12) -> Close of Discovery | O12: ='3. Data_Input_Sheet'!U12 -> Per Board Decision
D14: Determination of Taxable Income
B16: 1 | D16: Utility net income before taxes | G16: ='7. Cost_of_Capital'!P22 -> 3905.649388 | K16: ='7. Cost_of_Capital'!P38 -> 3897.731162 | O16: ='7. Cost_of_Capital'!P54 -> 3897.731162
B18: 2 | D18: Adjustments required to arrive at taxable utility income | G18: ='3. Data_Input_Sheet'!E44 -> -3176.429719 | K18: ='3. Data_Input_Sheet'!M44 -> -2868.947714 | O18: =IF(ISBLANK('3. Data_Input_Sheet'!U44),G18,'3. Data_Input_Sheet'!U44) -> -3176.429719
B20: 3 | D20: Taxable income | G20: =G16+G18 -> 729.2196689 | K20: =K16+K18 -> 1028.783447 | O20: =O16+O18 -> 721.3014426
D22: Calculation of Utility income Taxes
B24: 4 | D24: Income taxes | G24: ='3. Data_Input_Sheet'!E46 -> 148.2432123 | K24: =IF(ISBLANK('3. Data_Input_Sheet'!M46),'6. Taxes_PILs'!G24,'3. Data_Input_Sheet'!M46) -> 200.6276136 | O24: =IF(ISBLANK('3. Data_Input_Sheet'!U46),'6. Taxes_PILs'!K24,'3. Data_Input_Sheet'!U46) -> 200.6276136
B25: 5 | D25: Capital taxes | G25: ='3. Data_Input_Sheet'!E48 -> 0 | K25: =IF(ISBLANK('3. Data_Input_Sheet'!M48),'6. Taxes_PILs'!G25,'3. Data_Input_Sheet'!M48) -> 0 | O25: =IF(ISBLANK('3. Data_Input_Sheet'!U48),'6. Taxes_PILs'!K25,'3. Data_Input_Sheet'!U48) -> 0
G26: =SUM(G24:G25) -> 148.2432123 | K26: =SUM(K24:K25) -> 200.6276136 | O26: =SUM(O24:O25) -> 200.6276136
B27: 6 | D27: Total taxes
B29: 7 | D29: Gross-up of Income Taxes | G29: =(G24/(1-G41))-G24 -> 41.08485005 | K29: =(K24/(1-K41))-K24 -> 60.25950766 | O29: =(O24/(1-O41))-O24 -> 60.25950766
B31: 8 | D31: Grossed-up Income Taxes | G31: =G24+G29 -> 189.3280623 | K31: =K24+K29 -> 260.8871212 | O31: =O24+O29 -> 260.8871212
B33: 9 | D33: PILs / tax Allowance (Grossed-up Income taxes + Capital taxes) | G33: =G26+G29 -> 189.3280623 | K33: =K29+K26 -> 260.8871212 | O33: =O29+O26 -> 260.8871212
B35: 10 | D35: Other tax Credits | G35: ='3. Data_Input_Sheet'!E51 -> -10 | K35: =IF(ISBLANK('3. Data_Input_Sheet'!M51),G35,'3. Data_Input_Sheet'!M51) -> -37 | O35: =IF(ISBLANK('3. Data_Input_Sheet'!U51),K35,'3. Data_Input_Sheet'!U51) -> -37
D37: Tax Rates
B39: 11 | D39: Federal tax (%) | G39: ='3. Data_Input_Sheet'!E49 -> 0.15 | K39: =IF(ISBLANK('3. Data_Input_Sheet'!M49),G39,'3. Data_Input_Sheet'!M49) -> 0.15 | O39: =IF(ISBLANK('3. Data_Input_Sheet'!U49),K39,'3. Data_Input_Sheet'!U49) -> 0.15
B40: 12 | D40: Provincial tax (%) | G40: ='3. Data_Input_Sheet'!E50 -> 0.06700348881 | K40: =IF(ISBLANK('3. Data_Input_Sheet'!M50),G40,'3. Data_Input_Sheet'!M50) -> 0.0809792349 | O40: =IF(ISBLANK('3. Data_Input_Sheet'!U50),K40,'3. Data_Input_Sheet'!U50) -> 0.0809792349
B41: 13 | D41: Total tax rate (%) | G41: =G39+G40 -> 0.2170034888 | K41: =K39+K40 -> 0.2309792349 | O41: =O39+O40 -> 0.2309792349
B44: Notes
D45: Capital Taxes not applicable after July 1, 2010 (i.e. for 2011 and later test years)

Sheet 7. Cost_of_Capital
B5: Capitalization/Cost of Capital
B11: Line No. | D11: Particulars | F11: Capitalization Ratio | L11: Cost Rate | P11: Return
F13: Initial Application
F15: (%) | J15: ($) | L15: (%) | P15: ($)
D16: Debt
B17: 1 | D17: Long-term Debt | F17: ='3. Data_Input_Sheet'!E55 -> 0.56 | J17: =$J$26*F17 -> 58794.72197 | L17: ='3. Data_Input_Sheet'!E62 -> 0.04547566585 | P17: =L17*J17 -> 2673.72913
B18: 2 | D18: Short-term Debt | F18: ='3. Data_Input_Sheet'!E56 -> 0.04 | J18: =$J$26*F18 -> 4199.622998 | L18: ='3. Data_Input_Sheet'!E63 -> 0.0216 | P18: =L18*J18 -> 90.71185676
B19: 3 | D19: Total Debt | F19: =SUM(F17:F18) -> 0.6 | J19: =SUM(J17:J18) -> 62994.34497 | L19: =IF(F19=0,0,SUMPRODUCT(F17:F18,L17:L18)/F19) -> 0.04388395479 | P19: =SUM(P17:P18) -> 2764.440987
D21: Equity
B22: 4 | D22: Common Equity | F22: ='3. Data_Input_Sheet'!E57 -> 0.4 | J22: =$J$26*F22 -> 41996.22998 | L22: ='3. Data_Input_Sheet'!E64 -> 0.093 | P22: =L22*J22 -> 3905.649388
B23: 5 | D23: Preferred Shares | F23: ='3. Data_Input_Sheet'!E58 -> 0 | J23: =$J$26*F23 -> 0 | L23: ='3. Data_Input_Sheet'!E65 -> 0 | P23: =L23*J23 -> 0
B24: 6 | D24: Total Equity | F24: =SUM(F22:F23) -> 0.4 | J24: =SUM(J22:J23) -> 41996.22998 | L24: =IF(F24=0,0,SUMPRODUCT(F22:F23,L22:L23)/F24) -> 0.093 | P24: =SUM(P22:P23) -> 3905.649388
B26: 7 | D26: Total | F26: =SUM(F19,F24) -> 1 | J26: ='4. Rate_Base'!G18 -> 104990.5749 | L26: =(L19*F19)+(L24*F24) -> 0.06353037288 | P26: =P19+P24 -> 6670.090375
F29: ='1. Info'!AC1 -> Close of Discovery
F31: (%) | J31: ($) | L31: (%) | P31: ($)
D32: Debt
B33: 1 | D33: Long-term Debt | F33: ='3. Data_Input_Sheet'!M55 -> 0.56 | J33: =$J$42*F33 -> 58675.52287 | L33: ='3. Data_Input_Sheet'!M62 -> 0.04544420054 | P33: =L33*J33 -> 2666.462228
B34: 2 | D34: Short-term Debt | F34: ='3. Data_Input_Sheet'!M56 -> 0.04 | J34: =$J$42*F34 -> 4191.108776 | L34: ='3. Data_Input_Sheet'!M63 -> 0.0216 | P34: =L34*J34 -> 90.52794956
B35: 3 | D35: Total Debt | F35: =SUM(F33:F34) -> 0.6 | J35: =SUM(J33:J34) -> 62866.63164 | L35: =IF(F35=0,0,SUMPRODUCT(F33:F34,L33:L34)/F35) -> 0.04385458717 | P35: =SUM(P33:P34) -> 2756.990177
D37: Equity
B38: 4 | D38: Common Equity | F38: ='3. Data_Input_Sheet'!M57 -> 0.4 | J38: =$J$42*F38 -> 41911.08776 | L38: ='3. Data_Input_Sheet'!M64 -> 0.093 | P38: =L38*J38 -> 3897.731162
B39: 5 | D39: Preferred Shares | F39: ='3. Data_Input_Sheet'!M58 -> 0 | J39: =$J$42*F39 -> 0 | L39: ='3. Data_Input_Sheet'!M65 -> 0 | P39: =L39*J39 -> 0
B40: 6 | D40: Total Equity | F40: =SUM(F38:F39) -> 0.4 | J40: =SUM(J38:J39) -> 41911.08776 | L40: =IF(F40=0,0,SUMPRODUCT(F38:F39,L38:L39)/F40) -> 0.093 | P40: =SUM(P38:P39) -> 3897.731162
B42: 7 | D42: Total | F42: =F35+F40 -> 1 | J42: ='4. Rate_Base'!O18 -> 104777.7194 | L42: =(L35*F35)+(L40*F40) -> 0.0635127523 | P42: =P35+P40 -> 6654.721339
F45: Per Board Decision
F47: (%) | J47: ($) | L47: (%) | P47: ($)
D48: Debt
B49: 8 | D49: Long-term Debt | F49: =IF(ISBLANK('3. Data_Input_Sheet'!U55),F33,'3. Data_Input_Sheet'!U55) -> 0.56 | J49: =$J$58*F49 -> 58675.52287 | L49: =IF(ISBLANK('3. Data_Input_Sheet'!U62),L17,'3. Data_Input_Sheet'!U62) -> 0.04547566585 | P49: =L49*J49 -> 2668.308471
B50: 9 | D50: Short-term Debt | F50: =IF(ISBLANK('3. Data_Input_Sheet'!U56),F34,'3. Data_Input_Sheet'!U56) -> 0.04 | J50: =$J$58*F50 -> 4191.108776 | L50: =IF(ISBLANK('3. Data_Input_Sheet'!U63),L18,'3. Data_Input_Sheet'!U63) -> 0.0216 | P50: =L50*J50 -> 90.52794956
B51: 10 | D51: Total Debt | F51: =SUM(F49:F50) -> 0.6 | J51: =SUM(J49:J50) -> 62866.63164 | L51: =IF(F51=0,0,SUMPRODUCT(F49:F50,L49:L50)/F51) -> 0.04388395479 | P51: =SUM(P49:P50) -> 2758.836421
D53: Equity
B54: 11 | D54: Common Equity | F54: =IF(ISBLANK('3. Data_Input_Sheet'!U57),F38,'3. Data_Input_Sheet'!U57) -> 0.4 | J54: =$J$58*F54 -> 41911.08776 | L54: =IF(ISBLANK('3. Data_Input_Sheet'!U64),L22,'3. Data_Input_Sheet'!U64) -> 0.093 | P54: =L54*J54 -> 3897.731162
B55: 12 | D55: Preferred Shares | F55: =IF(ISBLANK('3. Data_Input_Sheet'!U58),F39,'3. Data_Input_Sheet'!U58) -> 0 | J55: =$J$58*F55 -> 0 | L55: =IF(ISBLANK('3. Data_Input_Sheet'!U65),L23,'3. Data_Input_Sheet'!U65) -> 0 | P55: =L55*J55 -> 0
B56: 13 | D56: Total Equity | F56: =SUM(F54:F55) -> 0.4 | J56: =SUM(J54:J55) -> 41911.08776 | L56: =IF(F56=0,0,SUMPRODUCT(F54:F55,L54:L55)/F56) -> 0.093 | P56: =SUM(P54:P55) -> 3897.731162
B58: 14 | D58: Total | F58: =F51+F56 -> 1 | J58: ='4. Rate_Base'!W18 -> 104777.7194 | L58: =(L51*F51)+(L56*F56) -> 0.06353037288 | P58: =P51+P56 -> 6656.567583
B61: Notes
B62: (1) | D62: ='3. Data_Input_Sheet'!C71 -> Data in column E is for Application as originally filed. For updated revenue requirement as a result of interrogatory responses, technical or settlement conferences, etc., use colimn M and Adjustments in column I

Sheet 8. Rev_Def_Suff
P1: =CONCATENATE('2. Table of Contents'!$F$6," ",'2. Table of Contents'!$G$6) -> 
B10: Revenue Deficiency/Sufficiency
F13: Initial Application | J13: =IF(ISBLANK('3. Data_Input_Sheet'!M12),"",'3. Data_Input_Sheet'!M12) -> Close of Discovery | N13: ='3. Data_Input_Sheet'!U12 -> Per Board Decision
B15: Line No. | D15: Particulars | F15: At Current Approved Rates | H15: At Proposed Rates | J15: At Current Approved Rates | L15: At Proposed Rates | N15: At Current Approved Rates | P15: At Proposed Rates
B19: 1 | D19: Revenue Deficiency from Below | H19: =F52 -> 2862.090025 | L19: =J52 -> 2890.484678 | P19: =N52 -> 2892.330922
B20: 2 | D20: Distribution Revenue | F20: ='3. Data_Input_Sheet'!E25 -> 18703.17355 | H20: ='3. Data_Input_Sheet'!E26-H19 -> 18703.17355 | J20: =IF(ISBLANK('3. Data_Input_Sheet'!M25),'3. Data_Input_Sheet'!E25,'3. Data_Input_Sheet'!M25) -> 18756.06735 | L20: =IF(ISBLANK('3. Data_Input_Sheet'!M26),'3. Data_Input_Sheet'!E26-L19,'3. Data_Input_Sheet'!M26-L19) -> 18756.06735 | N20: =IF(ISBLANK('3. Data_Input_Sheet'!U25),'3. Data_Input_Sheet'!M25,'3. Data_Input_Sheet'!U25) -> 18756.06735 | P20: =IF(ISBLANK('3. Data_Input_Sheet'!U26),'3. Data_Input_Sheet'!M26-P19,'3. Data_Input_Sheet'!U26-P19) -> 18754.2211
B21: 3 | D21: Other Operating Revenue Offsets - net | F21: ='5. Utility Income'!F48 -> 1336.318969 | H21: ='5. Utility Income'!F48 -> 1336.318969 | J21: ='5. Utility Income'!N48 -> 1334.416082 | L21: =J21 -> 1334.416082 | N21: ='5. Utility Income'!V48 -> 1334.416082 | P21: ='5. Utility Income'!V48 -> 1334.416082
B22: 4 | D22: Total Revenue | F22: =SUM(F20:F21) -> 20039.49252 | H22: =SUM(H19:H21) -> 22901.58255 | J22: =SUM(J20:J21) -> 20090.48343 | L22: =SUM(L19:L21) -> 22980.96811 | N22: =SUM(N20:N21) -> 20090.48343 | P22: =SUM(P19:P21) -> 22980.96811
B24: 5 | D24: Operating Expenses | F24: ='5. Utility Income'!F27 -> 16042.16411 | H24: ='5. Utility Income'!F27 -> 16042.16411 | J24: ='5. Utility Income'!N27 -> 16065.35965 | L24: ='5. Utility Income'!N27 -> 16065.35965 | N24: ='5. Utility Income'!V27 -> 16065.35965 | P24: ='5. Utility Income'!V27 -> 16065.35965
B25: 6 | D25: Deemed Interest Expense | F25: ='5. Utility Income'!F30 -> 2764.440987 | H25: ='5. Utility Income'!F30 -> 2764.440987 | J25: ='5. Utility Income'!N30 -> 2756.990177 | L25: ='5. Utility Income'!N30 -> 2756.990177 | N25: ='5. Utility Income'!V30 -> 2758.836421 | P25: ='5. Utility Income'!V30 -> 2758.836421
B26: 8 | D26: Total Cost and Expenses | F26: =SUM(F24:F25) -> 18806.6051 | H26: =SUM(H24:H25) -> 18806.6051 | J26: =SUM(J24:J25) -> 18822.34982 | L26: =SUM(L24:L25) -> 18822.34982 | N26: =SUM(N24:N25) -> 18824.19607 | P26: =SUM(P24:P25) -> 18824.19607
B28: 9 | D28: Utility Income Before Income Taxes | F28: =F22-F26 -> 1232.887425 | H28: =H22-H26 -> 4094.97745 | J28: =J22-J26 -> 1268.133605 | L28: =L22-L26 -> 4158.618283 | N28: =N22-N26 -> 1266.287361 | P28: =P22-P26 -> 4156.77204
B30: 10 | D30: Tax Adjustments to Accounting Income per 2013 PILs model | F30: ='3. Data_Input_Sheet'!E44 -> -3176.429719 | H30: ='3. Data_Input_Sheet'!E44 -> -3176.429719 | J30: =IF(ISBLANK('3. Data_Input_Sheet'!M44),'3. Data_Input_Sheet'!E44,'3. Data_Input_Sheet'!M44) -> -2868.947714 | L30: =IF(ISBLANK('3. Data_Input_Sheet'!M44),'3. Data_Input_Sheet'!E44,'3. Data_Input_Sheet'!M44) -> -2868.947714 | N30: =IF(ISBLANK('3. Data_Input_Sheet'!U44),'3. Data_Input_Sheet'!M44,'3. Data_Input_Sheet'!U44) -> -2868.947714 | P30: =IF(ISBLANK('3. Data_Input_Sheet'!U44),'3. Data_Input_Sheet'!M44,'3. Data_Input_Sheet'!U44) -> -2868.947714
B31: 11 | D31: Taxable Income | F31: =SUM(F28:F30) -> -1943.542294 | H31: =SUM(H28:H30) -> 918.5477312 | J31: =SUM(J28+J30) -> -1600.81411 | L31: =L28+L30 -> 1289.670569 | N31: =SUM(N28+N30) -> -1602.660353 | P31: =P28+P30 -> 1287.824325
B33: 12 | D33: Income Tax Rate | F33: ='6. Taxes_PILs'!G41 -> 0.2170034888 | H33: ='6. Taxes_PILs'!G41 -> 0.2170034888 | J33: ='6. Taxes_PILs'!K41 -> 0.2309792349 | L33: ='6. Taxes_PILs'!K41 -> 0.2309792349 | N33: ='6. Taxes_PILs'!O41 -> 0.2309792349 | P33: ='6. Taxes_PILs'!O41 -> 0.2309792349
B34: 13 | D34: Income Tax on Taxable Income | F34: =F31*F33 -> -421.7554585 | H34: =H31*H33 -> 199.3280623 | J34: =J31*J33 -> -369.7548182 | L34: =L31*L33 -> 297.8871212 | N34: =N31*N33 -> -370.1812622 | P34: =P31*P33 -> 297.4606773
B35: 14 | D35: Income Tax Credits | F35: ='3. Data_Input_Sheet'!E51 -> -10 | H35: ='3. Data_Input_Sheet'!E51 -> -10 | J35: =IF(ISBLANK('3. Data_Input_Sheet'!M51),'3. Data_Input_Sheet'!E51,'3. Data_Input_Sheet'!M51) -> -37 | L35: =IF(ISBLANK('3. Data_Input_Sheet'!M51),'3. Data_Input_Sheet'!E51,'3. Data_Input_Sheet'!M51) -> -37 | N35: =IF(ISBLANK('3. Data_Input_Sheet'!U51),'3. Data_Input_Sheet'!M51,'3. Data_Input_Sheet'!U51) -> -37 | P35: =IF(ISBLANK('3. Data_Input_Sheet'!U51),'3. Data_Input_Sheet'!M51,'3. Data_Input_Sheet'!U51) -> -37
B36: 15 | D36: Utility Net Income | F36: =F28-SUM(F34:F35) -> 1664.642884 | H36: ='5. Utility Income'!F37 -> 3905.649388 | J36: =J28-SUM(J34:J35) -> 1674.888423 | L36: ='5. Utility Income'!N37 -> 3897.731162 | N36: =N28-SUM(N34:N35) -> 1673.468623 | P36: ='5. Utility Income'!V37 -> 3895.884918
B38: 16 | D38: Utility Rate Base | F38: ='4. Rate_Base'!G18 -> 104990.5749 | H38: ='4. Rate_Base'!G18 -> 104990.5749 | J38: ='4. Rate_Base'!O18 -> 104777.7194 | L38: ='4. Rate_Base'!O18 -> 104777.7194 | N38: ='4. Rate_Base'!W18 -> 104777.7194 | P38: ='4. Rate_Base'!W18 -> 104777.7194
B40: 17 | D40: Deemed Equity Portion of Rate Base | F40: ='7. Cost_of_Capital'!J24 -> 41996.22998 | H40: =F40 -> 41996.22998 | J40: ='7. Cost_of_Capital'!J40 -> 41911.08776 | L40: =J40 -> 41911.08776 | N40: ='7. Cost_of_Capital'!J56 -> 41911.08776 | P40: =N40 -> 41911.08776
B42: 18 | D42: Income/(Equity Portion of Rate Base) | F42: =IF(F40=0,0,F36/F40) -> 0.03963791236 | H42: =IF(H40=0,0,H36/H40) -> 0.093 | J42: =IF(J40=0,0,J36/J40) -> 0.03996289556 | L42: =IF(L40=0,0,L36/L40) -> 0.093 | N42: =IF(N40=0,0,N36/N40) -> 0.03992901909 | P42: =IF(P40=0,0,P36/P40) -> 0.09295594857
B43: 19 | D43: Target Return - Equity on Rate Base | F43: ='7. Cost_of_Capital'!L24 -> 0.093 | H43: ='7. Cost_of_Capital'!L24 -> 0.093 | J43: ='7. Cost_of_Capital'!L40 -> 0.093 | L43: ='7. Cost_of_Capital'!L40 -> 0.093 | N43: ='7. Cost_of_Capital'!L56 -> 0.093 | P43: ='7. Cost_of_Capital'!L56 -> 0.093
B44: 20 | D44: Deficiency/Sufficiency in Return on Equity | F44: =F42-F43 -> -0.05336208764 | H44: =H42-H43 -> 0 | J44: =J42-J43 -> -0.05303710444 | L44: =L42-L43 -> 0 | N44: =N42-N43 -> -0.05307098091 | P44: =P42-P43 -> -4.405143426e-05
B46: 21 | D46: Indicated Rate of Return | F46: =IF(F38=0,0,(F36+F25)/F38) -> 0.04218553782 | H46: =IF(H38=0,0,(H36+H25)/H38) -> 0.06353037288 | J46: =IF(J38=0,0,(J36+J25)/J38) -> 0.04229791053 | L46: =IF(L40=0,0,(L36+L25)/L38) -> 0.0635127523 | N46: =IF(N38=0,0,(N36+N25)/N38) -> 0.04230198051 | P46: =IF(P40=0,0,(P36+P25)/P38) -> 0.0635127523
B47: 22 | D47: Requested Rate of Return on Rate Base | F47: ='7. Cost_of_Capital'!L26 -> 0.06353037288 | H47: ='7. Cost_of_Capital'!L26 -> 0.06353037288 | J47: ='7. Cost_of_Capital'!L42 -> 0.0635127523 | L47: ='7. Cost_of_Capital'!L42 -> 0.0635127523 | N47: ='7. Cost_of_Capital'!L58 -> 0.06353037288 | P47: ='7. Cost_of_Capital'!L58 -> 0.06353037288
B48: 23 | D48: Deficiency/Sufficiency in Rate of Return | F48: =F46-F47 -> -0.02134483505 | H48: =H46-H47 -> 0 | J48: =J46-J47 -> -0.02121484178 | L48: =L46-L47 -> 0 | N48: =N46-N47 -> -0.02122839236 | P48: =P46-P47 -> -1.76205737e-05
B50: 24 | D50: Target Return on Equity | F50: =H50 -> 3905.649388 | H50: ='7. Cost_of_Capital'!P24 -> 3905.649388 | J50: =L50 -> 3897.731162 | L50: ='7. Cost_of_Capital'!P40 -> 3897.731162 | N50: =P50 -> 3897.731162 | P50: ='7. Cost_of_Capital'!P56 -> 3897.731162
B51: 25 | D51: Revenue Deficiency/(Sufficiency) | F51: =F50-F36 -> 2241.006505 | H51: =H38*H48 -> 0 | J51: =J50-J36 -> 2222.842739 | L51: =L38*L48 -> 0 | N51: =N50-N36 -> 2224.262538 | P51: =P38*P48 -> -1.846243527
B52: 26 | D52: Gross Revenue Deficiency/(Sufficiency) | F52: =F51/(1-F33) -> 2862.090025 | G52: (1) | J52: =J51/(1-J33) -> 2890.484678 | K52: (1) | N52: =N51/(1-N33) -> 2892.330922 | O52: (1)
B55: Notes:
B56: (1) | D56: Revenue Deficiency/Sufficiency divided by (1 - Tax Rate)

Sheet 9. Rev_Reqt
B11: Revenue Requirement
B13: Line No. | D13: Particulars | F13: Application | J13: =IF(ISBLANK('3. Data_Input_Sheet'!M12),"",'3. Data_Input_Sheet'!M12) -> Close of Discovery | N13: ='3. Data_Input_Sheet'!U12 -> Per Board Decision
B15: 1 | D15: OM&A Expenses | F15: ='5. Utility Income'!F22 -> 11959.79719 | J15: ='5. Utility Income'!N22 -> 12018.84419 | N15: ='5. Utility Income'!V22 -> 12018.84419
B16: 2 | D16: Amortization/Depreciation | F16: ='5. Utility Income'!F23 -> 3896.462548 | J16: ='5. Utility Income'!N23 -> 3860.611083 | N16: ='5. Utility Income'!V23 -> 3860.611083
B17: 3 | D17: Property Taxes | F17: ='5. Utility Income'!F24 -> 158.4445968 | J17: ='5. Utility Income'!N24 -> 158.4445968 | N17: ='5. Utility Income'!V24 -> 158.4445968
B18: 4 | D18: Capital Taxes | F18: ='6. Taxes_PILs'!G25 -> 0 | J18: ='6. Taxes_PILs'!K25 -> 0 | N18: ='6. Taxes_PILs'!O25 -> 0
B19: 5 | D19: Income Taxes (Grossed up) | F19: ='6. Taxes_PILs'!G33-F18 -> 189.3280623 | J19: ='6. Taxes_PILs'!K33-J18 -> 260.8871212 | N19: ='6. Taxes_PILs'!O33-N18 -> 260.8871212
B20: 6 | D20: Other Expenses | F20: ='5. Utility Income'!F26 -> 27.45977693 | J20: ='5. Utility Income'!N26 -> 27.45977693 | N20: ='5. Utility Income'!V26 -> 27.45977693
B21: 7 | D21: Return
D22: Deemed Interest Expense | F22: ='8. Rev_Def_Suff'!F25 -> 2764.440987 | J22: ='8. Rev_Def_Suff'!L25 -> 2756.990177 | N22: ='8. Rev_Def_Suff'!P25 -> 2758.836421
D23: Return on Deemed Equity | F23: ='8. Rev_Def_Suff'!F50 -> 3905.649388 | J23: ='8. Rev_Def_Suff'!L50 -> 3897.731162 | N23: ='8. Rev_Def_Suff'!P50 -> 3897.731162
B25: 8 | D25: Service Revenue Requirement (before Revenues) | F25: =SUM(F15:F23) -> 22901.58255 | J25: =SUM(J15:J23) -> 22980.96811 | N25: =SUM(N15:O23) -> 22982.81435
B27: 9 | D27: Revenue Offsets | F27: ='3. Data_Input_Sheet'!E33 -> 1336.318969 | J27: ='3. Data_Input_Sheet'!M33 -> 1334.416082 | N27: ='3. Data_Input_Sheet'!U33 -> 0
B28: 10 | D28: Base Revenue Requirement | F28: =F25-F27 -> 21565.26358 | J28: =J25-J27 -> 21646.55202 | N28: =N25-N27 -> 22982.81435
D29: (excluding Tranformer Owership Allowance credit adjustment)
B31: 11 | D31: Distribution revenue | F31: ='5. Utility Income'!F16 -> 21565.26358 | J31: ='5. Utility Income'!N16 -> 21646.55202 | N31: ='5. Utility Income'!V16 -> 21646.55202
B32: 12 | D32: Other revenue | F32: ='5. Utility Income'!F17 -> 1336.318969 | J32: ='5. Utility Income'!N17 -> 1334.416082 | N32: ='5. Utility Income'!V17 -> 1334.416082
F33: =SUM(F31:F32) -> 22901.58255 | J33: =SUM(J31:J32) -> 22980.96811 | N33: =SUM(N31:N32) -> 22980.96811
B34: 13 | D34: Total revenue
F35: =F33-F25 -> 0 | J35: =J33-J25 -> 0 | N35: =N33-N25 -> -1.846243527
B36: 14 | D36: Difference (Total Revenue Less Distribution Revenue Requirement before Revenues) | H36: (1) | L36: (1) | Q36: (1)
B38: Notes
B39: (1) | D39: Line 11 - Line 8

Sheet 10. Tracking_Sheet
B14: Tracking Form
B15: The last row shown is the most current estimate of the cost of service data reflecting the original application and any updates provided by the applicant distributor (for updated evidence, responses to interrogatories, undertakings, etc.) Please ensure a Reference (Column B) and/or Item Description (Column C) is entered. Please note that unused rows will automatically be hidden and the PRINT AREA set when the PRINT BUTTON on Sheet 1 is activated. (1) Short reference to evidence material (interrogatory response, undertaking, exhibit number, Board Decision, Code, Guideline, Report of the Board, etc.) (2) Short description of change, issue, etc. 60 Tracking Rows have been provided below. If you require more, please contact Industry Relations @ IndustryRelations@ontarioenergyboard.ca.
B16: Summary of Proposed Changes 2015
D18: Cost of Capital | F18: Rate Base and Capital Expenditures | I18: Operating Expenses | L18: Revenue Requirement
B19: Reference (1) | C19: Item / Description (2) | D19: Regulated Return on Capital | E19: Regulated Rate of Return | F19: Rate Base | G19: Working Capital | H19: Working Capital Allowance ($) | I19: Amortization / Depreciation | J19: Taxes/PILs | K19: OM&A | L19: Service Revenue Requirement | M19: Other Revenues | N19: Base Revenue Requirement | O19: Grossed up Revenue Deficiency / Sufficiency
C21: Original Application | D21: 6670.090375 | E21: 0.06353037288 | F21: 104990.5749 | G21: 132780.5188 | H21: 17261.46744 | I21: 3896.462548 | J21: 189.3280623 | K21: 11959.79719 | L21: 22901.58255 | M21: 1336.318969 | N21: 21565.26358 | O21: 2862.090025
A23: 1 | B23: Multiple Interrogatories | C23: 2014 Actuals Updated | D23: 6662.179267 | E23: 0.0635209007 | F23: 104881.6877 | G23: 132780.5188 | H23: 17261.46744 | I23: 3796.593736 | J23: 180.5300427 | K23: 11959.79719 | L23: 22785.00461 | M23: 1335.055969 | N23: 21449.94864 | O23: 2746.775086 | Q23: =IF(AND(ISBLANK(B23), ISBLANK(C23)), "X", "") -> 
C24: Change | D24: =IF(D23="","",D23-D21) -> -7.911108215 | E24: =IF(E23="","",E23-E21) -> -9.472178419e-06 | F24: -108.8872903 | G24: 0 | H24: 0 | I24: -99.86881143 | J24: -8.79801959 | K24: 0 | L24: -116.5779392 | M24: -1.263 | N24: -115.3149392 | O24: -115.3149392
A26: 2 | B26: 4-Energy Probe-50 & 54 | C26: Tax Updates (CCA Class 10 to 50, Adjusted Tax Credits) | D26: 6662.192337 | E26: 0.06352102532 | F26: 104881.6877 | G26: 132780.5188 | H26: 17261.46744 | I26: 3796.593736 | J26: 132.6009075 | K26: 11959.79719 | L26: 22737.08854 | M26: 1335.055969 | N26: 21402.03257 | O26: 2698.859021 | Q26: =IF(AND(ISBLANK(B26), ISBLANK(C26)), "X", "") -> 
C27: Change | D27: =IF(D26="","",D26-D23) -> 0.01307048477 | E27: =IF(E26="","",E26-E23) -> 1.246212286e-07 | F27: 0 | G27: 0 | H27: 0 | I27: 0 | J27: -47.9291352 | K27: 0 | L27: -47.91606471 | M27: 0 | N27: -47.91606471 | O27: -47.91606471
A29: 3 | B29: 4.0-Staff-31 | C29: Updated Post-Retirement Benefits Actuarial Valuation | D29: 6662.454723 | E29: 0.06351887821 | F29: 104889.3638 | G29: 132839.5658 | H29: 17269.14355 | I29: 3796.593736 | J29: 192.3879235 | K29: 12018.84419 | L29: 22856.18495 | M29: 1335.055969 | N29: 21521.12898 | O29: 2817.955423 | Q29: =IF(AND(ISBLANK(B29), ISBLANK(C29)), "X", "") -> 
C30: Change | D30: =IF(D29="","",D29-D26) -> 0.2623860139 | E30: =IF(E29="","",E29-E26) -> -2.147103916e-06 | F30: =IF(F29="","",F29-F26) -> 7.67611 | G30: =IF(G29="","",G29-G26) -> 59.047 | H30: =IF(H29="","",H29-H26) -> 7.67611 | I30: =IF(I29="","",I29-I26) -> 0 | J30: =IF(J29="","",J29-J26) -> 59.78701592 | K30: =IF(K29="","",K29-K26) -> 59.047 | L30: =IF(L29="","",L29-L26) -> 119.0964019 | M30: =IF(M29="","",M29-M26) -> 0 | N30: =IF(N29="","",N29-N26) -> 119.0964019 | O30: =IF(O29="","",O29-O26) -> 119.0964019
A32: 4 | B32: 3.0-Staff-25; 3.0-Energy Probe-33/34; 3.0-VECC-26/27/31;1.0-CCC-17; | C32: Updated Load Forecast | D32: 6663.963373 | E32: 0.06351895734 | F32: 104912.9843 | G32: 133021.262 | H32: 17292.76406 | I32: 3796.593736 | J32: 192.7703273 | K32: 12018.84419 | L32: 22858.076 | M32: 1334.416082 | N32: 21523.65992 | O32: 2857.69052 | Q32: =IF(AND(ISBLANK(B32), ISBLANK(C32)), "X", "") -> 
C33: Change | D33: =IF(D32="","",D32-D29) -> 1.508649408 | E33: =IF(E32="","",E32-E29) -> 7.912085817e-08 | F33: =IF(F32="","",F32-F29) -> 23.62051479 | G33: =IF(G32="","",G32-G29) -> 181.6962676 | H33: =IF(H32="","",H32-H29) -> 23.62051479 | I33: =IF(I32="","",I32-I29) -> 0 | J33: =IF(J32="","",J32-J29) -> 0.3824038043 | K33: =IF(K32="","",K32-K29) -> 0 | L33: =IF(L32="","",L32-L29) -> 1.891053212 | M33: =IF(M32="","",M32-M29) -> -0.639886764 | N33: =IF(N32="","",N32-N29) -> 2.530939976 | O33: =IF(O32="","",O32-O29) -> 39.73509653
A35: 5 | B35: 2.0-Staff-6 & Multiple Others | C35: DSP/Capital Updates to capacity solutions (HONI TS contributions & new MS9 substation) and changes to timing of In Service dates | D35: 6646.99862 | E35: 0.06351284369 | F35: 104655.9756 | G35: 133021.262 | H35: 17292.76406 | I35: 3860.611083 | J35: 259.2757832 | K35: 12018.84419 | L35: 22971.63405 | M35: 1334.416082 | N35: 21637.21797 | O35: 2971.24857 | Q35: =IF(AND(ISBLANK(B35), ISBLANK(C35)), "X", "") -> 
C36: Change | D36: =IF(D35="","",D35-D32) -> -16.96475286 | E36: =IF(E35="","",E35-E32) -> -6.113648836e-06 | F36: =IF(F35="","",F35-F32) -> -257.0086736 | G36: =IF(G35="","",G35-G32) -> 0 | H36: =IF(H35="","",H35-H32) -> 0 | I36: =IF(I35="","",I35-I32) -> 64.01734716 | J36: =IF(J35="","",J35-J32) -> 66.50545594 | K36: =IF(K35="","",K35-K32) -> 0 | L36: =IF(L35="","",L35-L32) -> 113.5580502 | M36: =IF(M35="","",M35-M32) -> 0 | N36: =IF(N35="","",N35-N32) -> 113.5580502 | O36: =IF(O35="","",O35-O32) -> 113.5580502
A38: 6 | C38: Adjustment for CDM Activities | D38: =IF($C38="","",'7. Cost_of_Capital'!$P$42) -> 6654.721339 | E38: =IF($C38="","",'7. Cost_of_Capital'!$L$42) -> 0.0635127523 | F38: =IF($C38="","",'4. Rate_Base'!$W$18) -> 104777.7194 | G38: =IF($C38="","",'4. Rate_Base'!$W$26) -> 133957.7528 | H38: =IF($C38="","",'4. Rate_Base'!$W$30) -> 17414.50786 | I38: =IF($C38="","",'9. Rev_Reqt'!$J$16) -> 3860.611083 | J38: =IF($C38="","",'9. Rev_Reqt'!$J$19) -> 260.8871212 | K38: =IF($C38="","",'9. Rev_Reqt'!$J$15) -> 12018.84419 | L38: =IF($C38="","",'9. Rev_Reqt'!$J$25) -> 22980.96811 | M38: =IF($C38="","",'9. Rev_Reqt'!$J$32) -> 1334.416082 | N38: =IF($C38="","",'9. Rev_Reqt'!$J$28) -> 21646.55202 | O38: =IF($C38="","",'8. Rev_Def_Suff'!$J$52) -> 2890.484678 | Q38: =IF(AND(ISBLANK(B38), ISBLANK(C38)), "X", "") -> 
C39: Change | D39: =IF(D38="","",D38-D35) -> 7.722719482 | E39: =IF(E38="","",E38-E35) -> -9.138461822e-08 | F39: =IF(F38="","",F38-F35) -> 121.7437939 | G39: =IF(G38="","",G38-G35) -> 936.4907226 | H39: =IF(H38="","",H38-H35) -> 121.7437939 | I39: =IF(I38="","",I38-I35) -> 0 | J39: =IF(J38="","",J38-J35) -> 1.611338039 | K39: =IF(K38="","",K38-K35) -> 0 | L39: =IF(L38="","",L38-L35) -> 9.334057521 | M39: =IF(M38="","",M38-M35) -> 0 | N39: =IF(N38="","",N38-N35) -> 9.334057521 | O39: =IF(O38="","",O38-O35) -> -80.76389185
A41: 7 | D41: =IF($C41="","",'7. Cost_of_Capital'!$P$42) ->  | E41: =IF($C41="","",'7. Cost_of_Capital'!$L$26) ->  | F41: =IF($C41="","",'4. Rate_Base'!$G$18) ->  | G41: =IF($C41="","",'4. Rate_Base'!$G$26) ->  | H41: =IF($C41="","",'4. Rate_Base'!$G$30) ->  | I41: =IF($C41="","",'9. Rev_Reqt'!$F$16) ->  | J41: =IF($C41="","",'9. Rev_Reqt'!$F$19) ->  | K41: =IF($C41="","",'9. Rev_Reqt'!$F$15) ->  | L41: =IF($C41="","",'9. Rev_Reqt'!$F$25) ->  | M41: =IF($C41="","",'9. Rev_Reqt'!$F$32) ->  | N41: =IF($C41="","",'9. Rev_Reqt'!$F$28) ->  | O41: =IF($C41="","",'8. Rev_Def_Suff'!$F$52) ->  | Q41: =IF(AND(ISBLANK(B41), ISBLANK(C41)), "X", "") -> X
C42: Change | D42: =IF(D41="","",D41-D38) ->  | E42: =IF(E41="","",E41-E38) ->  | F42: =IF(F41="","",F41-F38) ->  | G42: =IF(G41="","",G41-G38) ->  | H42: =IF(H41="","",H41-H38) ->  | I42: =IF(I41="","",I41-I38) ->  | J42: =IF(J41="","",J41-J38) ->  | K42: =IF(K41="","",K41-K38) ->  | L42: =IF(L41="","",L41-L38) ->  | M42: =IF(M41="","",M41-M38) ->  | N42: =IF(N41="","",N41-N38) ->  | O42: =IF(O41="","",O41-O38) -> 
A44: 8 | D44: =IF($C44="","",'7. Cost_of_Capital'!$P$26) ->  | E44: =IF($C44="","",'7. Cost_of_Capital'!$L$26) ->  | F44: =IF($C44="","",'4. Rate_Base'!$G$18) ->  | G44: =IF($C44="","",'4. Rate_Base'!$G$26) ->  | H44: =IF($C44="","",'4. Rate_Base'!$G$30) ->  | I44: =IF($C44="","",'9. Rev_Reqt'!$F$16) ->  | J44: =IF($C44="","",'9. Rev_Reqt'!$F$19) ->  | K44: =IF($C44="","",'9. Rev_Reqt'!$F$15) ->  | L44: =IF($C44="","",'9. Rev_Reqt'!$F$25) ->  | M44: =IF($C44="","",'9. Rev_Reqt'!$F$32) ->  | N44: =IF($C44="","",'9. Rev_Reqt'!$F$28) ->  | O44: =IF($C44="","",'8. Rev_Def_Suff'!$F$52) ->  | Q44: =IF(AND(ISBLANK(B44), ISBLANK(C44)), "X", "") -> X
C45: Change | D45: =IF(D44="","",D44-D41) ->  | E45: =IF(E44="","",E44-E41) ->  | F45: =IF(F44="","",F44-F41) ->  | G45: =IF(G44="","",G44-G41) ->  | H45: =IF(H44="","",H44-H41) ->  | I45: =IF(I44="","",I44-I41) ->  | J45: =IF(J44="","",J44-J41) ->  | K45: =IF(K44="","",K44-K41) ->  | L45: =IF(L44="","",L44-L41) ->  | M45: =IF(M44="","",M44-M41) ->  | N45: =IF(N44="","",N44-N41) ->  | O45: =IF(O44="","",O44-O41) -> 
A47: 9 | D47: =IF($C47="","",'7. Cost_of_Capital'!$P$26) ->  | E47: =IF($C47="","",'7. Cost_of_Capital'!$L$26) ->  | F47: =IF($C47="","",'4. Rate_Base'!$G$18) ->  | G47: =IF($C47="","",'4. Rate_Base'!$G$26) ->  | H47: =IF($C47="","",'4. Rate_Base'!$G$30) ->  | I47: =IF($C47="","",'9. Rev_Reqt'!$F$16) ->  | J47: =IF($C47="","",'9. Rev_Reqt'!$F$19) ->  | K47: =IF($C47="","",'9. Rev_Reqt'!$F$15) ->  | L47: =IF($C47="","",'9. Rev_Reqt'!$F$25) ->  | M47: =IF($C47="","",'9. Rev_Reqt'!$F$32) ->  | N47: =IF($C47="","",'9. Rev_Reqt'!$F$28) ->  | O47: =IF($C47="","",'8. Rev_Def_Suff'!$F$52) ->  | Q47: =IF(AND(ISBLANK(B47), ISBLANK(C47)), "X", "") -> X
C48: Change | D48: =IF(D47="","",D47-D44) ->  | E48: =IF(E47="","",E47-E44) ->  | F48: =IF(F47="","",F47-F44) ->  | G48: =IF(G47="","",G47-G44) ->  | H48: =IF(H47="","",H47-H44) ->  | I48: =IF(I47="","",I47-I44) ->  | J48: =IF(J47="","",J47-J44) ->  | K48: =IF(K47="","",K47-K44) ->  | L48: =IF(L47="","",L47-L44) ->  | M48: =IF(M47="","",M47-M44) ->  | N48: =IF(N47="","",N47-N44) ->  | O48: =IF(O47="","",O47-O44) -> 
A50: 10 | D50: =IF($C50="","",'7. Cost_of_Capital'!$P$26) ->  | E50: =IF($C50="","",'7. Cost_of_Capital'!$L$26) ->  | F50: =IF($C50="","",'4. Rate_Base'!$G$18) ->  | G50: =IF($C50="","",'4. Rate_Base'!$G$26) ->  | H50: =IF($C50="","",'4. Rate_Base'!$G$30) ->  | I50: =IF($C50="","",'9. Rev_Reqt'!$F$16) ->  | J50: =IF($C50="","",'9. Rev_Reqt'!$F$19) ->  | K50: =IF($C50="","",'9. Rev_Reqt'!$F$15) ->  | L50: =IF($C50="","",'9. Rev_Reqt'!$F$25) ->  | M50: =IF($C50="","",'9. Rev_Reqt'!$F$32) ->  | N50: =IF($C50="","",'9. Rev_Reqt'!$F$28) ->  | O50: =IF($C50="","",'8. Rev_Def_Suff'!$F$52) ->  | Q50: =IF(AND(ISBLANK(B50), ISBLANK(C50)), "X", "") -> X
C51: Change | D51: =IF(D50="","",D50-D47) ->  | E51: =IF(E50="","",E50-E47) ->  | F51: =IF(F50="","",F50-F47) ->  | G51: =IF(G50="","",G50-G47) ->  | H51: =IF(H50="","",H50-H47) ->  | I51: =IF(I50="","",I50-I47) ->  | J51: =IF(J50="","",J50-J47) ->  | K51: =IF(K50="","",K50-K47) ->  | L51: =IF(L50="","",L50-L47) ->  | M51: =IF(M50="","",M50-M47) ->  | N51: =IF(N50="","",N50-N47) ->  | O51: =IF(O50="","",O50-O47) -> 
A53: 11 | D53: =IF($C53="","",'7. Cost_of_Capital'!$P$26) ->  | E53: =IF($C53="","",'7. Cost_of_Capital'!$L$26) ->  | F53: =IF($C53="","",'4. Rate_Base'!$G$18) ->  | G53: =IF($C53="","",'4. Rate_Base'!$G$26) ->  | H53: =IF($C53="","",'4. Rate_Base'!$G$30) ->  | I53: =IF($C53="","",'9. Rev_Reqt'!$F$16) ->  | J53: =IF($C53="","",'9. Rev_Reqt'!$F$19) ->  | K53: =IF($C53="","",'9. Rev_Reqt'!$F$15) ->  | L53: =IF($C53="","",'9. Rev_Reqt'!$F$25) ->  | M53: =IF($C53="","",'9. Rev_Reqt'!$F$32) ->  | N53: =IF($C53="","",'9. Rev_Reqt'!$F$28) ->  | O53: =IF($C53="","",'8. Rev_Def_Suff'!$F$52) ->  | Q53: =IF(AND(ISBLANK(B53), ISBLANK(C53)), "X", "") -> X
C54: Change | D54: =IF(D53="","",D53-D50) ->  | E54: =IF(E53="","",E53-E50) ->  | F54: =IF(F53="","",F53-F50) ->  | G54: =IF(G53="","",G53-G50) ->  | H54: =IF(H53="","",H53-H50) ->  | I54: =IF(I53="","",I53-I50) ->  | J54: =IF(J53="","",J53-J50) ->  | K54: =IF(K53="","",K53-K50) ->  | L54: =IF(L53="","",L53-L50) ->  | M54: =IF(M53="","",M53-M50) ->  | N54: =IF(N53="","",N53-N50) ->  | O54: =IF(O53="","",O53-O50) -> 
A56: 12 | D56: =IF($C56="","",'7. Cost_of_Capital'!$P$26) ->  | E56: =IF($C56="","",'7. Cost_of_Capital'!$L$26) ->  | F56: =IF($C56="","",'4. Rate_Base'!$G$18) ->  | G56: =IF($C56="","",'4. Rate_Base'!$G$26) ->  | H56: =IF($C56="","",'4. Rate_Base'!$G$30) ->  | I56: =IF($C56="","",'9. Rev_Reqt'!$F$16) ->  | J56: =IF($C56="","",'9. Rev_Reqt'!$F$19) ->  | K56: =IF($C56="","",'9. Rev_Reqt'!$F$15) ->  | L56: =IF($C56="","",'9. Rev_Reqt'!$F$25) ->  | M56: =IF($C56="","",'9. Rev_Reqt'!$F$32) ->  | N56: =IF($C56="","",'9. Rev_Reqt'!$F$28) ->  | O56: =IF($C56="","",'8. Rev_Def_Suff'!$F$52) ->  | Q56: =IF(AND(ISBLANK(B56), ISBLANK(C56)), "X", "") -> X
C57: Change | D57: =IF(D56="","",D56-D53) ->  | E57: =IF(E56="","",E56-E53) ->  | F57: =IF(F56="","",F56-F53) ->  | G57: =IF(G56="","",G56-G53) ->  | H57: =IF(H56="","",H56-H53) ->  | I57: =IF(I56="","",I56-I53) ->  | J57: =IF(J56="","",J56-J53) ->  | K57: =IF(K56="","",K56-K53) ->  | L57: =IF(L56="","",L56-L53) ->  | M57: =IF(M56="","",M56-M53) ->  | N57: =IF(N56="","",N56-N53) ->  | O57: =IF(O56="","",O56-O53) -> 
A59: 13 | D59: =IF($C59="","",'7. Cost_of_Capital'!$P$26) ->  | E59: =IF($C59="","",'7. Cost_of_Capital'!$L$26) ->  | F59: =IF($C59="","",'4. Rate_Base'!$G$18) ->  | G59: =IF($C59="","",'4. Rate_Base'!$G$26) ->  | H59: =IF($C59="","",'4. Rate_Base'!$G$30) ->  | I59: =IF($C59="","",'9. Rev_Reqt'!$F$16) ->  | J59: =IF($C59="","",'9. Rev_Reqt'!$F$19) ->  | K59: =IF($C59="","",'9. Rev_Reqt'!$F$15) ->  | L59: =IF($C59="","",'9. Rev_Reqt'!$F$25) ->  | M59: =IF($C59="","",'9. Rev_Reqt'!$F$32) ->  | N59: =IF($C59="","",'9. Rev_Reqt'!$F$28) ->  | O59: =IF($C59="","",'8. Rev_Def_Suff'!$F$52) ->  | Q59: =IF(AND(ISBLANK(B59), ISBLANK(C59)), "X", "") -> X
C60: Change | D60: =IF(D59="","",D59-D56) ->  | E60: =IF(E59="","",E59-E56) ->  | F60: =IF(F59="","",F59-F56) ->  | G60: =IF(G59="","",G59-G56) ->  | H60: =IF(H59="","",H59-H56) ->  | I60: =IF(I59="","",I59-I56) ->  | J60: =IF(J59="","",J59-J56) ->  | K60: =IF(K59="","",K59-K56) ->  | L60: =IF(L59="","",L59-L56) ->  | M60: =IF(M59="","",M59-M56) ->  | N60: =IF(N59="","",N59-N56) ->  | O60: =IF(O59="","",O59-O56) -> 
A62: 14 | D62: =IF($C62="","",'7. Cost_of_Capital'!$P$26) ->  | E62: =IF($C62="","",'7. Cost_of_Capital'!$L$26) ->  | F62: =IF($C62="","",'4. Rate_Base'!$G$18) ->  | G62: =IF($C62="","",'4. Rate_Base'!$G$26) ->  | H62: =IF($C62="","",'4. Rate_Base'!$G$30) ->  | I62: =IF($C62="","",'9. Rev_Reqt'!$F$16) ->  | J62: =IF($C62="","",'9. Rev_Reqt'!$F$19) ->  | K62: =IF($C62="","",'9. Rev_Reqt'!$F$15) ->  | L62: =IF($C62="","",'9. Rev_Reqt'!$F$25) ->  | M62: =IF($C62="","",'9. Rev_Reqt'!$F$32) ->  | N62: =IF($C62="","",'9. Rev_Reqt'!$F$28) ->  | O62: =IF($C62="","",'8. Rev_Def_Suff'!$F$52) ->  | Q62: =IF(AND(ISBLANK(B62), ISBLANK(C62)), "X", "") -> X
C63: Change | D63: =IF(D62="","",D62-D59) ->  | E63: =IF(E62="","",E62-E59) ->  | F63: =IF(F62="","",F62-F59) ->  | G63: =IF(G62="","",G62-G59) ->  | H63: =IF(H62="","",H62-H59) ->  | I63: =IF(I62="","",I62-I59) ->  | J63: =IF(J62="","",J62-J59) ->  | K63: =IF(K62="","",K62-K59) ->  | L63: =IF(L62="","",L62-L59) ->  | M63: =IF(M62="","",M62-M59) ->  | N63: =IF(N62="","",N62-N59) ->  | O63: =IF(O62="","",O62-O59) -> 
A65: 15 | D65: =IF($C65="","",'7. Cost_of_Capital'!$P$26) ->  | E65: =IF($C65="","",'7. Cost_of_Capital'!$L$26) ->  | F65: =IF($C65="","",'4. Rate_Base'!$G$18) ->  | G65: =IF($C65="","",'4. Rate_Base'!$G$26) ->  | H65: =IF($C65="","",'4. Rate_Base'!$G$30) ->  | I65: =IF($C65="","",'9. Rev_Reqt'!$F$16) ->  | J65: =IF($C65="","",'9. Rev_Reqt'!$F$19) ->  | K65: =IF($C65="","",'9. Rev_Reqt'!$F$15) ->  | L65: =IF($C65="","",'9. Rev_Reqt'!$F$25) ->  | M65: =IF($C65="","",'9. Rev_Reqt'!$F$32) ->  | N65: =IF($C65="","",'9. Rev_Reqt'!$F$28) ->  | O65: =IF($C65="","",'8. Rev_Def_Suff'!$F$52) ->  | Q65: =IF(AND(ISBLANK(B65), ISBLANK(C65)), "X", "") -> X
C66: Change | D66: =IF(D65="","",D65-D62) ->  | E66: =IF(E65="","",E65-E62) ->  | F66: =IF(F65="","",F65-F62) ->  | G66: =IF(G65="","",G65-G62) ->  | H66: =IF(H65="","",H65-H62) ->  | I66: =IF(I65="","",I65-I62) ->  | J66: =IF(J65="","",J65-J62) ->  | K66: =IF(K65="","",K65-K62) ->  | L66: =IF(L65="","",L65-L62) ->  | M66: =IF(M65="","",M65-M62) ->  | N66: =IF(N65="","",N65-N62) ->  | O66: =IF(O65="","",O65-O62) -> 
A68: 16 | Q68: =IF(AND(ISBLANK(B68), ISBLANK(C68)), "X", "") -> X
C69: Change
A71: 17 | Q71: =IF(AND(ISBLANK(B71), ISBLANK(C71)), "X", "") -> X
C72: Change
A74: 18 | Q74: =IF(AND(ISBLANK(B74), ISBLANK(C74)), "X", "") -> X
C75: Change
R76: Page Break 1
A77: 19 | Q77: =IF(AND(ISBLANK(B77), ISBLANK(C77)), "X", "") -> X
C78: Change
A80: 20 | Q80: =IF(AND(ISBLANK(B80), ISBLANK(C80)), "X", "") -> X
C81: Change
A83: 21 | Q83: =IF(AND(ISBLANK(B83), ISBLANK(C83)), "X", "") -> X
C84: Change
A86: 22 | Q86: =IF(AND(ISBLANK(B86), ISBLANK(C86)), "X", "") -> X
C87: Change
A89: 23 | Q89: =IF(AND(ISBLANK(B89), ISBLANK(C89)), "X", "") -> X
C90: Change
A92: 24 | Q92: =IF(AND(ISBLANK(B92), ISBLANK(C92)), "X", "") -> X
C93: Change
A95: 25 | Q95: =IF(AND(ISBLANK(B95), ISBLANK(C95)), "X", "") -> X
C96: Change
A98: 26 | Q98: =IF(AND(ISBLANK(B98), ISBLANK(C98)), "X", "") -> X
C99: Change
A101: 27 | Q101: =IF(AND(ISBLANK(B101), ISBLANK(C101)), "X", "") -> X
C102: Change
A104: 28 | Q104: =IF(AND(ISBLANK(B104), ISBLANK(C104)), "X", "") -> X
C105: Change
A107: 29 | Q107: =IF(AND(ISBLANK(B107), ISBLANK(C107)), "X", "") -> X
C108: Change
A110: 30 | Q110: =IF(AND(ISBLANK(B110), ISBLANK(C110)), "X", "") -> X
C111: Change
A113: 31 | Q113: =IF(AND(ISBLANK(B113), ISBLANK(C113)), "X", "") -> X
C114: Change
A116: 32 | Q116: =IF(AND(ISBLANK(B116), ISBLANK(C116)), "X", "") -> X
C117: Change
A119: 33 | Q119: =IF(AND(ISBLANK(B119), ISBLANK(C119)), "X", "") -> X
C120: Change
A122: 34 | Q122: =IF(AND(ISBLANK(B122), ISBLANK(C122)), "X", "") -> X
C123: Change
A125: 35 | Q125: =IF(AND(ISBLANK(B125), ISBLANK(C125)), "X", "") -> X
C126: Change
A128: 36 | Q128: =IF(AND(ISBLANK(B128), ISBLANK(C128)), "X", "") -> X
C129: Change
R130: Page Break 2
A131: 37 | Q131: =IF(AND(ISBLANK(B131), ISBLANK(C131)), "X", "") -> X
C132: Change
A134: 38 | Q134: =IF(AND(ISBLANK(B134), ISBLANK(C134)), "X", "") -> X
C135: Change
A137: 39 | Q137: =IF(AND(ISBLANK(B137), ISBLANK(C137)), "X", "") -> X
C138: Change
A140: 40 | Q140: =IF(AND(ISBLANK(B140), ISBLANK(C140)), "X", "") -> X
C141: Change
A143: 41 | Q143: =IF(AND(ISBLANK(B143), ISBLANK(C143)), "X", "") -> X
C144: Change
A146: 42 | Q146: =IF(AND(ISBLANK(B146), ISBLANK(C146)), "X", "") -> X
C147: Change
A149: 43 | Q149: =IF(AND(ISBLANK(B149), ISBLANK(C149)), "X", "") -> X
C150: Change
A152: 44 | Q152: =IF(AND(ISBLANK(B152), ISBLANK(C152)), "X", "") -> X
C153: Change
A155: 45 | Q155: =IF(AND(ISBLANK(B155), ISBLANK(C155)), "X", "") -> X
C156: Change
A158: 46 | Q158: =IF(AND(ISBLANK(B158), ISBLANK(C158)), "X", "") -> X
C159: Change
A161: 47 | Q161: =IF(AND(ISBLANK(B161), ISBLANK(C161)), "X", "") -> X
C162: Change
A164: 48 | Q164: =IF(AND(ISBLANK(B164), ISBLANK(C164)), "X", "") -> X
C165: Change
A167: 49 | Q167: =IF(AND(ISBLANK(B167), ISBLANK(C167)), "X", "") -> X
C168: Change
A170: 50 | Q170: =IF(AND(ISBLANK(B170), ISBLANK(C170)), "X", "") -> X
C171: Change
A173: 51 | Q173: =IF(AND(ISBLANK(B173), ISBLANK(C173)), "X", "") -> X
C174: Change
A176: 52 | Q176: =IF(AND(ISBLANK(B176), ISBLANK(C176)), "X", "") -> X
C177: Change
A179: 53 | Q179: =IF(AND(ISBLANK(B179), ISBLANK(C179)), "X", "") -> X
C180: Change
R181: Page Break 3
A182: 54 | Q182: =IF(AND(ISBLANK(B182), ISBLANK(C182)), "X", "") -> X
C183: Change
A185: 55 | Q185: =IF(AND(ISBLANK(B185), ISBLANK(C185)), "X", "") -> X
C186: Change
A188: 56 | Q188: =IF(AND(ISBLANK(B188), ISBLANK(C188)), "X", "") -> X
C189: Change
A191: 57 | Q191: =IF(AND(ISBLANK(B191), ISBLANK(C191)), "X", "") -> X
C192: Change
A194: 58 | Q194: =IF(AND(ISBLANK(B194), ISBLANK(C194)), "X", "") -> X
C195: Change
A197: 59 | Q197: =IF(AND(ISBLANK(B197), ISBLANK(C197)), "X", "") -> X
C198: Change
A200: 60 | Q200: =IF(AND(ISBLANK(B200), ISBLANK(C200)), "X", "") -> X
C201: Change
R203: Page Break 4

Sheet Not part of Model ==>

Sheet Data
B1: LINKED DIRECTLY TO "Data for OEB RRWF' TAB in MASTER WORKING FILE - NO ACTION REQUIRED
B4: Rate Base
B5: Gross Fixed Assets (average) | C5: 172968.5574
B6: Accumulated Depreciation (average) | C6: -85605.34582
B7: Allowance for Working Capital:
B8: Controllable Expenses | C8: 12204.74856
B9: Cost of Power | C9: 121753.0042
B10: Working Capital Rate (%) | C10: 0.13
B12: Utility Income
B13: Operating Revenues: | F13: Deficiency
B14: Distribution Revenue at Current Rates | C14: 18756.06735 | F14: =C15-C14 -> 2890.484678
B15: Distribution Revenue at Proposed Rates | C15: 21646.55202
B16: Other Revenue:
B17: Specific Service Charges | C17: 757.5907735
B18: Late Payment Charges | C18: 290.0190901
B19: Other Distribution Revenue | C19: 158.8062186
B20: Other Income and Deductions | C20: 128
B22: Total Revenue Offsets | C22: 1334.416082
B24: Operating Expenses:
B25: OM+A Expenses | C25: 12018.84419
B26: Depreciation/Amortization | C26: 3860.611083
B27: Property taxes | C27: 158.4445968
B28: Capital taxes
B29: Other expenses | C29: 27.45977693
B31: Taxes/PILs
B32: Taxable Income:
B33: Adjustments required to arrive at taxable income | C33: -2868.947714
B34: Utility Income Taxes and Rates:
B35: Income taxes (not grossed up) | C35: 200.6276136
B36: Income taxes (grossed up) | C36: 260.8871212
B37: Capital Taxes
B38: Federal tax (%) | C38: 0.15
B39: Provincial tax (%) | C39: 0.0809792349
B40: Income Tax Credits | C40: -37
B42: Capitalization/Cost of Capital
B43: Capital Structure:
B44: Long-term debt Capitalization Ratio (%) | C44: 0.56
B45: Short-term debt Capitalization Ratio (%) | C45: 0.04
B46: Common Equity Capitalization Ratio (%) | C46: 0.4
B47: Prefered Shares Capitalization Ratio (%) | C47: 0
C48: 1
B50: Cost of Capital
B51: Long-term debt Cost Rate (%) | C51: 0.04544420054
B52: Short-term debt Cost Rate (%) | C52: 0.0216
B53: Common Equity Cost Rate (%) | C53: 0.093
B54: Prefered Shares Cost Rate (%)
